bitfinex-derivatives/quotes_ETHF0:USTF0_20251012
["timestamp","ask_amount","ask_price","bid_price","bid_amount"]
[1760235887799,0.3388,3725.4,3725.2,0.48275]
[1760235888202,0.1418,3725.5,3725.2,0.48275]
[1760235888401,0.1418,3725.5,3725.0,0.48278]
[1760235888602,0.3388,3725.4,3724.6,0.00312499]
[1760235888802,0.1418,3725.0,3724.6,0.00312499]
[1760235889097,0.3388,3724.9,3724.7,0.48282]
[1760235889502,0.1418,3725.0,3724.7,0.48282]
[1760235889702,0.3388,3724.9,3724.8,0.4828]
[1760235889902,0.1418,3725.5,3725.1,0.48276]
[1760235890404,0.3388,3725.4,3725.1,0.48276]
[1760235890610,0.3388,3725.4,3725.3,0.48273]
[1760235892300,0.48261,3726.4,3726.0,0.48264]
[1760235892301,0.3388,3726.4,3726.0,0.48264]
[1760235892512,0.1346,3726.5,3726.1,0.48263]
[1760235892712,0.3388,3726.4,3725.7,0.3253]
[1760235893414,0.3388,3726.4,3726.2,0.48262]
[1760235893812,0.4734,3726.5,3726.4,0.4826]
[1760235894009,0.3388,3726.5,3726.4,0.4826]
[1760235894211,0.3388,3726.9,3726.8,0.48254]
[1760235894915,0.00312392,3727.0,3726.9,0.3253]
[1760235895914,0.14492392,3727.0,3725.8,0.3253]
[1760235896118,0.3388,3726.9,3725.8,0.3253]
[1760235896308,0.3388,3726.9,3726.4,0.48259]
[1760235896606,0.4806,3726.5,3726.4,0.48259]
[1760235897210,0.4806,3726.5,3725.8,0.3253]
[1760235897413,0.3388,3726.4,3725.4,1.53213]
[1760235897615,0.3388,3726.4,3726.2,0.48262]
[1760235898012,0.1418,3726.5,3726.2,0.48262]
[1760235898212,0.3388,3726.4,3726.2,0.48262]
[1760235899316,0.1418,3726.5,3726.2,0.48262]
[1760235899713,0.1418,3726.5,3725.7,0.3253]
[1760235899714,0.3388,3726.9,3726.6,0.48257]
[1760235899912,0.14492392,3727.0,3726.6,0.48257]
[1760235900518,0.4806,3726.5,3726.4,0.4826]
[1760235902925,0.48372392,3727.0,3726.9,0.48253]
[1760235903123,0.3388,3726.9,3726.7,0.48256]
[1760235903322,0.14492392,3727.0,3726.7,0.48256]
[1760235904121,0.3388,3726.9,3726.7,0.48256]
[1760235904321,0.14492392,3727.0,3726.7,0.48256]
[1760235904618,0.14492392,3727.0,3726.8,0.48254]
[1760235904925,0.14492392,3727.0,3726.9,0.3251]
[1760235904926,0.00312392,3727.0,3726.9,0.3251]
[1760235906224,0.00312392,3727.0,3726.8,0.48254]
[1760235906522,0.367,3726.9,3726.8,0.48254]
[1760235906730,0.37012392,3727.0,3726.8,0.80764]
[1760235907022,0.00312392,3727.0,3726.9,0.3251]
[1760235907422,0.00312392,3727.0,3726.9,5.3251]
[1760235907729,0.022,3727.8,3727.7,0.80753]
[1760235908416,0.389,3727.8,3727.7,0.80753]
[1760235908616,0.39169691,3727.8,3727.7,0.00217225]
[1760235908815,0.367,3727.7,3726.8,0.48254]
[1760235909019,5.02469691,3727.8,3726.7,0.48255]
[1760235909020,0.5069,3727.0,3726.7,0.48255]
[1760235909219,0.1399,3727.0,3726.7,0.48255]
[1760235909522,0.367,3726.9,3726.8,0.48254]
[1760235909723,0.367,3726.9,3726.8,0.48489601]
[1760235910926,0.367,3727.4,3727.2,0.48249]
[1760235912021,0.1399,3727.5,3727.2,0.48249]
[1760235912325,0.367,3726.9,3726.8,0.00235601]
[1760235912722,5.367,3726.9,3726.8,0.00235601]
[1760235912924,5.0,3726.9,3725.7,0.48268]
[1760235913124,0.1399,3726.0,3725.0,0.3251]
[1760235913326,0.4827,3725.7,3724.7,0.48281]
[1760235913524,0.1399,3725.5,3724.4,0.3251]
[1760235913724,0.367,3725.4,3724.4,0.3251]
[1760235913923,0.367,3725.4,3724.8,0.3251]
[1760235914229,0.1399,3726.0,3725.8,0.48267]
[1760235914426,0.367,3725.9,3725.8,0.48267]
[1760235914728,0.367,3726.4,3726.3,0.4826]
[1760235915823,0.367,3726.4,3726.1,0.48264]
[1760235916221,0.1399,3726.5,3726.1,0.48264]
[1760235917417,0.1399,3726.5,3726.2,0.48262]
[1760235917620,0.367,3726.4,3726.2,0.48262]
[1760235918219,0.1399,3726.5,3725.6,0.3251]
[1760235918426,0.5069,3726.5,3725.6,0.3251]
[1760235919124,0.367,3726.4,3726.2,0.48262]
[1760235919323,0.367,3726.2,3725.1,0.3251]
[1760235919523,0.1399,3726.0,3724.6,1.20707]
[1760235919724,0.367,3725.9,3725.0,1.20696]
[1760235919924,0.1399,3726.5,3726.2,0.48262]
[1760235920128,0.5069,3726.5,3725.7,0.3251]
[1760235920434,0.1399,3726.5,3726.3,0.4826]
[1760235920624,0.367,3726.4,3726.3,0.4826]
[1760235920931,0.367,3726.9,3726.8,0.48254]
[1760235921433,0.367,3727.4,3727.3,0.48247]
[1760235921632,0.02469691,3727.8,3727.3,0.48247]
[1760235921633,0.02469691,3727.8,3727.3,0.48437333]
[1760235921828,0.39169691,3727.8,3727.7,0.48243]
[1760235922324,0.02469691,3727.8,3727.7,0.48243]
[1760235923435,0.39169691,3727.8,3727.7,0.48243]
[1760235923729,0.02469691,3727.8,3727.7,5.80753]
[1760235923926,0.1399,3729.0,3728.6,0.48231]
[1760235924232,0.367,3728.8,3728.6,0.4823]
[1760235924628,0.367,3729.4,3728.8,0.48228]
[1760235924830,0.367,3729.2,3728.8,0.48228]
[1760235925027,0.367,3729.3,3728.8,0.48228]
[1760235925225,0.00257623,3729.4,3728.8,0.48228]
[1760235925430,0.00257623,3729.4,3728.9,0.48227]
[1760235925834,0.367,3729.3,3728.9,0.48227]
[1760235926136,0.00257623,3729.4,3728.9,0.48227]
[1760235926333,0.367,3728.9,3728.5,0.48233]
[1760235926528,0.367,3728.9,3728.6,0.48231]
[1760235926728,0.1399,3729.0,3728.6,0.48231]
[1760235927036,0.367,3729.3,3729.1,0.48225]
[1760235927936,0.00257623,3729.4,3729.1,0.48225]
[1760235928129,0.367,3729.3,3729.1,0.48225]
[1760235928427,0.367,3729.3,3728.3,1.20587]
[1760235928428,0.00257623,3729.4,3729.3,0.48222]
[1760235928633,0.00257623,3729.4,3729.3,0.80732]
[1760235929226,0.00257623,3729.4,3729.3,0.48222]
[1760235929424,0.36957623,3729.4,3729.3,0.48222]
[1760235929829,0.00257623,3729.4,3729.3,0.80732]
[1760235930734,0.00257623,3729.4,3729.3,5.80732]
[1760235931223,0.5069,3731.0,3730.5,0.3251]
[1760235931424,0.367,3730.9,3730.4,0.48207]
[1760235931624,0.1399,3731.0,3730.4,0.48207]
[1760235931827,0.367,3730.9,3729.8,0.3251]
[1760235932027,0.367,3730.9,3730.7,0.80713]
[1760235932231,0.367,3731.4,3730.7,0.3251]
[1760235932429,0.367,3731.4,3730.4,1.20521]
[1760235932430,0.1399,3732.0,3731.2,0.80707]
[1760235932638,0.367,3731.9,3731.4,0.48195]
[1760235932828,0.1399,3732.0,3731.4,0.48195]
[1760235933028,0.367,3731.9,3731.2,0.3251]
[1760235933731,0.367,3731.8,3731.2,0.32833572]
[1760235933939,0.367,3731.8,3731.4,0.48195]
[1760235934238,0.367,3731.8,3731.2,0.32833572]
[1760235934438,0.00321803,3731.9,3731.3,0.48196]
[1760235934840,0.3605,3731.8,3731.3,0.48196]
[1760235935041,0.1453,3731.5,3731.2,0.00323572]
[1760235935339,0.3605,3731.4,3731.2,0.00323572]
[1760235936133,0.84246,3731.4,3731.2,0.00323572]
[1760235936337,5.84246,3731.4,3731.2,0.00323572]
[1760235936733,5.84246,3731.4,3729.1,1.20562]
[1760235936734,0.1453,3731.0,3729.6,0.3247]
[1760235936937,0.48209,3730.4,3729.6,0.48218]
[1760235937138,0.3605,3730.3,3729.6,0.48218]
[1760235937339,0.3605,3730.2,3729.6,0.48218]
[1760235937538,0.1453,3730.0,3729.7,0.48217]
[1760235937735,0.1453,3730.5,3730.1,0.48211]
[1760235937736,0.3605,3730.4,3730.1,0.48211]
[1760235937937,0.1453,3730.5,3730.2,0.4821]
[1760235938440,0.3605,3730.4,3730.2,0.8068]
[1760235938734,0.1453,3731.0,3730.4,0.48207]
[1760235938935,0.3605,3730.9,3730.4,0.48207]
[1760235939238,0.1453,3731.0,3730.4,0.48207]
[1760235939539,0.3605,3730.9,3730.4,0.48207]
[1760235939738,0.3605,3730.9,3730.2,0.4821]
[1760235939941,0.1453,3731.0,3730.2,0.4821]
[1760235940438,0.3605,3730.9,3730.7,0.48203]
[1760235940643,0.3605,3731.4,3730.3,0.3247]
[1760235940838,0.3605,3731.4,3731.3,0.48197]
[1760235941240,0.3605,3731.8,3731.7,0.4819]
[1760235942338,0.3605,3731.8,3730.6,1.20513]
[1760235942339,0.00321803,3731.9,3730.7,0.3249]
[1760235942545,0.4796,3731.5,3731.4,0.48195]
[1760235942745,0.34331803,3731.9,3731.7,0.48191]
[1760235943039,0.3401,3731.8,3731.7,0.48191]
[1760235944343,0.00321803,3731.9,3731.7,0.80681]
[1760235944545,0.34331803,3731.9,3731.7,0.80681]
[1760235944843,0.00321803,3731.9,3731.8,0.3249]
[1760235947238,0.3401,3731.8,3731.7,0.48191]
[1760235947635,0.00321803,3731.9,3731.4,0.48194]
[1760235947840,0.3401,3731.8,3731.6,0.48192]
[1760235948047,0.3401,3731.8,3731.7,0.48191]
[1760235948749,0.00321803,3731.9,3731.8,0.3249]
[1760235949047,0.022,3732.8,3732.6,0.4818]
[1760235949244,0.022,3732.8,3732.7,0.3249]
[1760235949445,0.022,3732.8,3732.6,0.4818]
[1760235949652,0.022,3732.8,3732.7,0.3249]
[1760235949945,0.022,3732.8,3732.7,0.32735862]
[1760235949946,0.02445327,3732.8,3732.7,0.32735862]
[1760235950850,0.36455327,3732.8,3732.7,0.00245862]
[1760235951848,0.36455327,3732.8,3731.3,1.20491]
[1760235951849,0.3401,3732.7,3732.0,0.48187]
[1760235952051,0.1395,3732.5,3731.9,0.48188]
[1760235952347,0.3401,3732.4,3732.2,0.48184]
[1760235952548,0.36455327,3732.8,3732.4,0.48182]
[1760235952845,0.36455327,3732.8,3732.6,0.48179]
[1760235953053,0.02445327,3732.8,3732.7,0.3249]
[1760235953350,0.3401,3732.7,3732.6,0.48179]
[1760235953751,0.02445327,3732.8,3732.6,0.48179]
[1760235953945,0.3401,3732.7,3732.6,0.48179]
[1760235954247,0.02445327,3732.8,3732.4,0.00228256]
[1760235954548,0.4796,3732.5,3732.4,0.00228256]
[1760235954845,0.4796,3732.5,3731.7,0.48191]
[1760235955048,0.1395,3732.0,3731.6,0.48192]
[1760235955239,0.3401,3732.3,3732.1,0.48186]
[1760235955440,0.1395,3732.5,3731.9,0.48189]
[1760235955644,0.3401,3732.3,3731.6,0.3249]
[1760235955844,0.3401,3732.3,3732.2,0.48185]
[1760235956048,0.3401,3732.7,3732.6,0.48179]
[1760235956252,0.3401,3732.7,3732.6,0.4818]
[1760235956449,0.02445327,3732.8,3732.6,0.8067]
[1760235956748,0.02445327,3732.8,3732.6,0.4818]
[1760235956948,0.02445327,3732.8,3731.8,1.20476]
[1760235956949,0.96153401,3733.7,3733.6,0.80657]
[1760235957146,0.96153401,3734.2,3734.1,0.4816]
[1760235957341,0.96153401,3735.2,3734.6,0.48154]
[1760235957543,0.3401,3734.8,3734.7,0.48152]
[1760235957757,0.98705069,3734.8,3734.7,0.48152]
[1760235958048,0.3401,3734.7,3734.1,0.4816]
[1760235958352,0.3401,3734.4,3734.2,0.48158]
[1760235958647,0.1395,3734.5,3734.2,0.48158]
[1760235959055,0.3401,3734.4,3734.2,0.48158]
[1760235959246,0.3401,3734.4,3734.3,0.48157]
[1760235960848,0.3401,3734.4,3734.1,0.48493104]
[1760235961042,0.3401,3734.4,3734.2,0.48158]
[1760235961251,0.3401,3734.4,3734.3,0.48157]
[1760235962755,5.3401,3734.4,3734.3,0.48157]
[1760235963151,0.3401,3734.3,3734.1,0.00333104]
[1760235963752,5.98422371,3734.2,3734.1,0.00333104]
[1760235964055,0.98422371,3734.2,3734.1,0.00333104]
[1760235964450,0.9841189,3734.2,3734.1,0.00333104]
[1760235964649,5.9841189,3734.2,3734.1,0.00333104]
[1760235964851,0.3553,3733.8,3732.6,0.3248]
[1760235965062,0.48167,3733.7,3732.8,0.48176]
[1760235965256,0.3553,3732.9,3732.1,0.3248]
[1760235965457,0.3553,3732.9,3732.8,0.48177]
[1760235965851,0.3553,3733.4,3733.2,0.48171]
[1760235966157,0.498,3733.5,3733.4,0.48169]
[1760235966755,0.3553,3733.5,3733.4,0.48169]
[1760235967257,0.1427,3733.5,3733.2,0.48171]
[1760235967457,0.3553,3733.4,3733.2,0.48171]
[1760235967756,0.1427,3733.5,3733.0,0.48174]
[1760235967954,0.64479342,3733.4,3733.0,0.48174]
[1760235968256,0.64479342,3733.3,3732.8,0.48390562]
[1760235968555,0.3553,3732.9,3732.8,0.48390562]
[1760235968861,0.3553,3732.9,3732.8,0.00213562]
[1760235969066,0.3553,3732.8,3731.4,0.3248]
[1760235969269,0.1427,3732.0,3731.5,0.48194]
[1760235969457,0.3553,3731.8,3730.9,0.3248]
[1760235969656,0.498,3731.5,3731.4,0.48195]
[1760235969956,0.3553,3731.5,3731.4,0.48195]
[1760235970155,0.35741873,3731.5,3731.4,0.48195]
[1760235970659,0.1427,3732.5,3732.3,0.48184]
[1760235970958,0.3553,3732.3,3732.1,0.48186]
[1760235971160,1.00165993,3732.2,3732.1,0.48186]
[1760235971354,0.3553,3732.2,3732.1,0.48186]
[1760235971660,0.35822987,3732.2,3732.1,0.48186]
[1760235972550,0.00292987,3732.2,3732.1,0.80666]
[1760235972856,0.00292987,3732.2,3732.1,5.80666]
[1760235973057,1.31683401,3733.1,3732.9,0.48176]
[1760235973264,0.64652276,3733.0,3732.9,0.80656]
[1760235973458,0.3553,3733.8,3733.4,0.48168]
[1760235973759,0.64662296,3733.7,3733.6,0.80646]
[1760235974061,0.64662296,3733.7,3732.9,1.20438]
[1760235974062,1.10423401,3734.5,3733.8,0.48163]
[1760235974258,0.3553,3734.3,3733.1,0.3248]
[1760235974462,0.498,3734.0,3733.9,0.48162]
[1760235974760,1.14453215,3734.0,3733.9,0.48162]
[1760235974955,0.78923215,3734.0,3733.7,0.48165]
[1760235975164,0.3553,3733.8,3733.7,0.48165]
[1760235975463,1.10625263,3734.5,3733.2,1.20428]
[1760235975662,1.00176429,3734.4,3733.3,0.3248]
[1760235975858,0.64646429,3734.3,3733.3,0.3248]
[1760235976053,0.64646429,3734.2,3733.3,0.3248]
[1760235976260,0.3553,3734.0,3733.3,0.3248]
[1760235977158,0.14471862,3734.5,3734.1,0.48159]
[1760235977463,0.64643868,3734.4,3734.1,0.48386829]
[1760235977655,0.3553,3734.2,3734.1,0.48386829]
[1760235978358,0.3553,3734.2,3734.1,0.00227829]
[1760235979660,0.1427,3734.0,3733.4,0.48169]
[1760235979859,0.498,3733.5,3733.4,0.48169]
[1760235980168,0.3553,3732.9,3732.8,0.48177]
[1760235980366,0.3553,3732.9,3732.0,0.1102]
[1760235980664,0.1427,3733.0,3732.7,0.48178]
[1760235980859,0.498,3733.5,3732.9,0.48175]
[1760235981165,0.3553,3733.3,3733.2,0.48171]
[1760235982258,0.3553,3733.3,3732.7,0.3248]
[1760235982458,0.3553,3733.4,3732.7,0.3248]
[1760235982954,0.1427,3733.5,3732.9,0.48175]
[1760235983160,0.1427,3733.5,3733.2,0.48171]
[1760235983465,0.3553,3733.4,3733.3,0.4817]
[1760235983959,0.498,3734.0,3733.9,0.48163]
[1760235984361,0.3553,3733.9,3733.7,0.48165]
[1760235984955,0.1427,3734.0,3733.7,0.48165]
[1760235985158,0.3553,3733.9,3733.7,0.48165]
[1760235985554,0.3553,3734.4,3734.2,0.48159]
[1760235985757,0.3553,3734.4,3734.3,0.48157]
[1760235987156,0.00201862,3734.5,3734.4,0.3248]
[1760235987360,0.3553,3735.4,3734.4,5.3248]
[1760235987560,0.1427,3735.5,3735.0,0.48148]
[1760235987761,0.3553,3735.4,3733.6,0.3228]
[1760235987967,0.3553,3735.2,3733.6,0.3228]
[1760235988161,0.498,3735.0,3733.6,0.3228]
[1760235988367,0.498,3735.0,3733.6,0.325368]
[1760235988763,0.1427,3735.0,3734.5,0.48154]
[1760235989156,0.3553,3734.9,3734.7,0.48152]
[1760235989459,0.1427,3735.0,3734.4,0.48156]
[1760235989667,0.3553,3734.9,3734.4,0.48156]
[1760235989969,0.1427,3735.0,3734.4,0.48156]
[1760235990165,0.1427,3735.0,3734.6,0.48153]
[1760235990469,0.3553,3734.9,3734.7,0.48152]
[1760235990969,0.3553,3734.9,3734.5,0.48155]
[1760235991168,0.3553,3734.9,3734.3,0.3228]
[1760235991867,0.1427,3735.0,3734.9,0.4815]
[1760235991868,0.498,3735.0,3734.9,0.4815]
[1760235992068,0.3553,3735.0,3734.9,0.4815]
[1760235993271,0.1427,3735.0,3734.1,0.3228]
[1760235993469,0.1427,3735.0,3734.5,0.48154]
[1760235993671,0.3553,3734.9,3733.6,0.325368]
[1760235993967,0.3553,3734.4,3733.6,0.484228]
[1760235994272,0.3553,3733.9,3733.6,0.002568]
[1760235995167,0.3691,3733.9,3733.6,0.325868]
[1760235995370,0.3691,3734.4,3733.8,0.48164]
[1760235995669,0.3691,3734.4,3734.3,0.48158]
[1760235995974,0.1427,3735.0,3734.6,0.48154]
[1760235996371,0.3691,3734.9,3734.3,0.48158]
[1760235996575,0.1434,3734.5,3734.1,0.48159]
[1760235996868,0.1434,3734.5,3733.6,0.002568]
[1760235996869,0.3691,3734.9,3733.9,0.3233]
[1760235997065,0.1427,3735.0,3734.6,0.48153]
[1760235997668,0.3691,3734.9,3734.6,0.48153]
[1760235997867,0.3691,3734.9,3734.4,0.48156]
[1760235998067,0.1427,3735.0,3734.4,0.48156]
[1760235998268,0.5125,3734.5,3734.4,0.48156]
[1760235998668,0.1427,3735.0,3734.4,0.48156]
[1760235998870,0.3691,3734.9,3734.4,0.48156]
[1760235999069,0.1427,3735.0,3734.4,0.48156]
[1760235999374,0.1427,3735.0,3734.7,0.48153]
[1760235999764,0.00296888,3735.2,3734.9,0.4815]
[1760235999964,0.37206888,3735.2,3735.1,0.48148]
[1760236000473,0.00296888,3735.2,3735.1,0.80478]
[1760236000671,0.00296888,3735.2,3735.1,5.80478]
[1760236001267,0.00195711,3735.8,3735.7,0.8047]
[1760236001474,0.1434,3737.0,3736.3,0.48132]
[1760236001669,0.3691,3736.9,3736.3,0.48132]
[1760236001874,0.1434,3737.0,3736.3,0.48132]
[1760236002277,0.14654157,3737.0,3736.3,0.48380123]
[1760236002471,0.3691,3736.9,3736.3,0.00248123]
[1760236003367,0.14654157,3737.0,3736.3,0.48379123]
[1760236003774,0.3691,3736.9,3736.3,0.48379123]
[1760236003978,0.14654157,3737.0,3736.3,0.48379123]
[1760236004382,0.3691,3736.9,3736.4,0.4813]
[1760236004575,0.14654157,3737.0,3736.3,0.00248123]
[1760236004775,0.3691,3736.4,3736.3,0.00248123]
[1760236006583,5.3691,3736.4,3736.3,0.00248123]
[1760236007285,5.48131,3736.4,3734.9,1.20374]
[1760236007486,0.1375,3735.5,3735.1,0.48147]
[1760236007786,0.3691,3735.4,3734.3,0.3228]
[1760236008081,0.1375,3735.5,3733.2,2.39684662]
[1760236008082,0.1375,3735.0,3734.7,0.48152]
[1760236008280,0.3691,3734.9,3734.7,0.48152]
[1760236008472,0.3691,3735.4,3734.7,0.32558733]
[1760236008677,0.1375,3736.0,3735.5,0.48141]
[1760236008886,0.3691,3735.9,3735.8,0.48139]
[1760236009179,0.3691,3735.9,3735.0,0.3228]
[1760236009180,0.14064157,3737.0,3735.6,1.20354]
[1760236009484,0.14064157,3737.0,3736.4,0.4813]
[1760236009881,0.1375,3736.5,3736.1,0.48134]
[1760236010092,0.5066,3736.0,3735.9,0.48137]
[1760236010286,0.3691,3735.9,3735.6,0.48141]
[1760236010576,0.1375,3736.0,3735.6,0.48141]
[1760236010782,0.3691,3735.9,3735.3,0.48144]
[1760236010975,0.3691,3735.4,3734.7,0.00278733]
[1760236011182,0.3691,3735.4,3735.2,0.48146]
[1760236011476,0.3691,3735.4,3735.3,0.48144]
[1760236011683,0.3691,3735.9,3735.7,0.48139]
[1760236012182,0.3691,3735.9,3735.8,0.48137]
[1760236012384,0.3691,3735.9,3734.8,0.3228]
[1760236012981,0.3691,3735.9,3735.7,0.48139]
[1760236013380,0.1375,3736.5,3736.4,0.48131]
[1760236013682,0.14064157,3737.0,3736.4,0.48131]
[1760236013985,0.14064157,3737.0,3735.3,1.20361]
[1760236013986,0.14064157,3737.0,3736.1,0.48134]
[1760236014288,0.3691,3736.9,3735.3,1.52641]
[1760236014487,0.1375,3736.5,3736.3,0.48132]
[1760236014782,0.3691,3736.4,3736.3,0.48132]
[1760236015086,0.14064157,3737.0,3736.4,0.4813]
[1760236015288,0.3691,3736.9,3736.2,0.48133]
[1760236015480,0.3691,3736.9,3736.3,0.48131]
[1760236015680,0.5066,3736.5,3736.4,0.4813]
[1760236015885,0.3691,3736.4,3736.2,0.48133]
[1760236016082,0.1375,3736.5,3736.2,0.48133]
[1760236016391,0.14064157,3737.0,3736.6,0.48127]
[1760236016586,0.14064157,3737.0,3736.7,0.48126]
[1760236017184,0.3691,3736.9,3736.7,0.48126]
[1760236017386,0.00314157,3737.0,3736.9,0.80404]
[1760236017888,0.00314157,3737.0,3736.9,5.80404]
[1760236019181,0.37224157,3737.0,3736.4,0.3228]
[1760236019377,0.3691,3736.9,3736.4,0.3228]
[1760236019586,0.50974157,3737.0,3736.4,0.3228]
[1760236019781,0.00314157,3737.0,3736.9,0.3228]
[1760236020188,0.00314157,3737.0,3736.9,5.3228]
[1760236021191,0.5066,3738.5,3738.2,0.48107]
[1760236021389,0.3691,3738.4,3737.1,0.3228]
[1760236021591,0.3691,3738.4,3737.3,0.48118]
[1760236021790,0.3691,3738.2,3737.1,0.80401]
[1760236021992,0.3691,3738.2,3737.1,0.3228]
[1760236022191,0.37127695,3738.2,3738.0,0.48109]
[1760236022794,0.00217695,3738.2,3738.0,0.80389]
[1760236023088,0.00217695,3738.2,3737.1,0.00319633]
[1760236023089,0.3691,3738.1,3737.5,0.48116]
[1760236023290,0.1375,3738.0,3737.6,0.48115]
[1760236023482,0.3691,3737.9,3737.4,0.48117]
[1760236023993,0.1375,3738.0,3737.4,0.48117]
[1760236024194,0.1375,3738.0,3737.5,0.48116]
[1760236024892,0.00217695,3738.2,3737.1,0.00319633]
[1760236024893,0.00217695,3738.2,3738.0,0.80369]
[1760236025098,0.00217695,3738.2,3738.1,0.3226]
[1760236025296,0.353,3738.1,3737.5,0.3226]
[1760236025483,0.353,3738.1,3737.9,0.48111]
[1760236025684,0.00217695,3738.2,3738.1,0.80369]
[1760236025884,0.00217695,3738.2,3738.1,0.48109]
[1760236026089,0.35517695,3738.2,3738.1,0.48109]
[1760236026491,5.35517695,3738.2,3737.2,0.3226]
[1760236026791,0.1333,3738.0,3737.3,0.48119]
[1760236026989,0.1333,3737.5,3737.4,0.48117]
[1760236027184,0.1333,3737.5,3737.1,0.00319633]
[1760236027185,0.353,3737.4,3737.1,0.00319633]
[1760236027697,0.353,3737.9,3737.1,0.00319633]
[1760236027995,0.353,3737.9,3737.7,0.48114]
[1760236028592,0.1333,3738.0,3737.7,0.48114]
[1760236028791,0.353,3737.9,3737.8,0.48112]
[1760236029596,0.1375,3738.5,3738.1,0.48109]
[1760236029597,0.35517695,3738.2,3738.1,0.48109]
[1760236030689,0.35517695,3738.2,3737.6,0.3226]
[1760236030895,0.35517695,3738.2,3737.6,0.48115]
[1760236030896,0.1333,3738.0,3737.6,0.48115]
[1760236031202,0.353,3737.9,3737.6,0.48115]
[1760236031503,0.1333,3737.5,3737.2,0.4812]
[1760236032198,0.353,3737.4,3737.2,0.4812]
[1760236032694,0.1333,3737.5,3737.2,0.4812]
[1760236033290,0.353,3737.4,3737.1,0.00319633]
[1760236033803,0.353,3737.2,3737.1,0.00319633]
[1760236034594,0.353,3737.4,3737.1,0.00319633]
[1760236034795,0.353,3737.4,3735.8,0.3226]
[1760236034996,0.353,3737.3,3736.8,0.48125]
[1760236035196,0.353,3737.5,3737.4,0.48118]
[1760236035397,0.1333,3738.0,3737.7,0.48114]
[1760236035602,0.353,3737.9,3737.8,0.48112]
[1760236035798,0.353,3737.9,3737.8,0.48376898]
[1760236036103,0.35517695,3738.2,3738.1,0.48109]
[1760236036299,0.00217695,3738.2,3738.1,0.48109]
[1760236036496,0.00217695,3738.2,3738.1,0.80369]
[1760236038597,0.353,3739.4,3738.6,0.3226]
[1760236038799,0.1333,3739.5,3738.6,0.3226]
[1760236039008,0.353,3740.2,3739.4,0.3226]
[1760236039209,0.353,3740.2,3738.5,0.1079]
[1760236039210,0.353,3739.9,3739.0,0.3226]
[1760236039503,0.353,3739.9,3739.5,0.4809]
[1760236039703,0.353,3739.8,3738.5,0.1079]
[1760236039900,0.00302522,3739.9,3739.1,0.48095]
[1760236040110,0.353,3739.8,3739.3,0.48093]
[1760236040302,0.00302522,3739.9,3739.5,0.48091]
[1760236040495,0.353,3739.8,3739.5,0.48091]
[1760236041601,0.353,3739.8,3739.4,0.48092]
[1760236041804,0.353,3739.8,3739.4,0.80352]
[1760236042396,0.00302522,3739.9,3738.5,0.1079]
[1760236042606,0.353,3739.8,3738.6,0.3226]
[1760236042802,0.1333,3739.5,3739.2,0.48094]
[1760236042997,0.353,3739.4,3739.2,0.48094]
[1760236043509,0.00302522,3739.9,3739.3,0.48092]
[1760236043703,0.353,3739.8,3739.3,0.48092]
[1760236043902,0.00302522,3739.9,3739.5,0.4809]
[1760236044300,0.00302522,3739.9,3739.6,0.48089]
[1760236044505,0.353,3739.8,3739.6,0.48089]
[1760236044699,0.00302522,3739.9,3739.6,0.48089]
[1760236044903,0.353,3739.8,3739.6,0.48089]
[1760236045506,0.00302522,3739.9,3739.6,0.48089]
[1760236046106,0.353,3739.8,3738.6,0.3226]
[1760236046407,0.353,3739.8,3739.0,0.3226]
[1760236046598,0.35602522,3739.9,3739.7,0.48087]
[1760236046803,0.353,3739.8,3739.7,0.48087]
[1760236047004,0.353,3739.8,3739.1,0.3226]
[1760236047205,0.353,3739.8,3739.7,0.48088]
[1760236047612,0.353,3739.8,3739.5,0.4809]
[1760236047811,0.353,3739.8,3738.5,0.1079]
[1760236047812,0.1333,3739.5,3739.3,0.48092]
[1760236048012,0.353,3739.4,3739.3,0.48092]
[1760236048202,0.353,3739.4,3737.6,2.40573]
[1760236048203,5.353,3739.4,3737.9,0.3226]
[1760236048511,0.4863,3739.5,3738.2,0.3226]
[1760236048700,0.4863,3739.5,3738.8,0.3226]
[1760236048904,0.4863,3739.5,3738.2,0.3226]
[1760236049114,0.353,3739.4,3739.2,0.48094]
[1760236049305,0.00302522,3739.9,3738.5,1.2026]
[1760236049614,0.00302522,3739.9,3738.6,0.3226]
[1760236049615,0.353,3739.8,3738.6,0.3226]
[1760236049915,0.353,3739.8,3738.5,1.2026]
[1760236049916,0.353,3739.8,3738.9,0.3226]
[1760236050108,0.00302522,3739.9,3739.6,0.48089]
[1760236050301,0.353,3739.8,3739.6,0.48089]
[1760236050603,0.00302522,3739.9,3739.8,0.48087]
[1760236051204,0.00302522,3739.9,3739.6,0.48089]
[1760236051414,0.353,3739.8,3738.6,0.3226]
[1760236051608,0.1333,3739.5,3738.6,0.3226]
[1760236051806,0.353,3739.4,3737.8,1.20544898]
[1760236052113,0.353,3738.9,3738.8,0.48099]
[1760236053412,0.353,3738.9,3737.9,0.3226]
[1760236053610,0.353,3738.9,3738.8,0.48099]
[1760236053821,0.353,3739.4,3738.6,0.3226]
[1760236054112,0.353,3739.4,3738.9,0.48098]
[1760236054411,0.1333,3739.0,3738.8,0.48099]
[1760236054615,0.1333,3739.0,3738.2,0.48107]
[1760236054804,0.3683,3738.4,3737.8,0.00264898]
[1760236055011,0.1388,3738.5,3738.0,0.48109]
[1760236055215,0.3683,3738.4,3737.8,0.00264898]
[1760236055417,0.1388,3738.5,3737.8,0.48376898]